bitfinex-derivatives/quotes_ETHF0:USTF0_20251005
["timestamp","ask_amount","ask_price","bid_price","bid_amount"]
[1759681992907,1.32662,4535.8,4535.7,5.74529074]
[1759681993107,1.02872,4535.8,4535.7,5.74529074]
[1759681993810,1.32662,4535.8,4535.7,5.74529074]
[1759681994208,1.02872,4535.8,4535.7,5.74529074]
[1759681994712,1.32662,4535.8,4535.7,5.74529074]
[1759681995213,1.02872,4535.8,4535.7,5.74529074]
[1759681999913,1.02872,4535.8,4535.7,0.74529074]
[1759682003621,0.39672,4535.8,4535.7,0.74529074]
[1759682004017,0.60912,4535.8,4535.7,0.74529074]
[1759682007915,0.39672,4535.8,4535.7,0.74529074]
[1759682009217,0.39671,4535.9,4535.8,0.3136]
[1759682009423,0.39671,4535.9,4535.8,0.7468]
[1759682009619,0.60911,4535.9,4535.8,0.7468]
[1759682009817,0.81271,4535.9,4535.8,0.7468]
[1759682010011,0.39671,4535.9,4535.8,0.7468]
[1759682010816,0.60911,4535.9,4535.8,0.7468]
[1759682014720,0.6167,4536.0,4535.8,0.7468]
[1759682015026,0.3967,4536.0,4535.9,0.7499]
[1759682015225,0.22,4536.0,4535.9,0.7499]
[1759682015727,0.6167,4536.0,4535.9,0.7499]
[1759682017428,3.2078,4536.1,4536.0,0.8851]
[1759682018630,3.60449,4536.1,4536.0,0.8851]
[1759682021533,3.2078,4536.1,4536.0,0.8851]
[1759682021731,3.2078,4536.1,4536.0,5.8851]
[1759682022423,3.60449,4536.1,4536.0,0.8851]
[1759682022935,3.2078,4536.1,4536.0,0.8851]
[1759682023232,3.60449,4536.1,4536.0,0.8851]
[1759682023935,3.2078,4536.1,4536.0,0.8851]
[1759682024938,3.2078,4536.1,4536.0,1.2818]
[1759682025326,0.00187662,4536.4,4536.3,1.14658]
[1759682025531,3.81629,4537.3,4537.2,0.4396]
[1759682025732,4.54629,4537.3,4537.2,0.7499]
[1759682025932,6.95830401,4537.3,4537.2,0.7499]
[1759682026131,0.2116,4537.3,4537.2,2.14359338]
[1759682026337,0.4319,4537.6,4537.5,0.8851]
[1759682026643,0.43464258,4537.6,4537.5,0.8851]
[1759682028835,0.43464258,4537.6,4537.5,2.27879338]
[1759682029048,0.21464258,4537.6,4537.5,2.27879338]
[1759682029343,0.00274258,4537.6,4537.5,2.49879338]
[1759682029842,0.00274258,4537.6,4537.5,5.70659338]
[1759682030838,0.2983,4538.6,4538.5,0.1304]
[1759682031135,3.34287311,4538.6,4538.5,0.8885]
[1759682031338,3.64117311,4538.6,4538.5,0.8885]
[1759682031735,3.64117311,4538.6,4538.5,0.684]
[1759682031941,3.64399351,4538.6,4538.5,0.684]
[1759682032239,3.64399351,4538.6,4538.5,0.5536]
[1759682037350,3.64399351,4538.6,4538.5,0.684]
[1759682037949,4.04046351,4538.6,4538.5,0.684]
[1759682039648,0.4307204,4538.6,4538.5,0.8885]
[1759682040544,0.0028204,4538.6,4538.5,2.67867338]
[1759682040944,0.2121204,4538.6,4538.5,2.28219338]
[1759682041150,0.2121204,4538.6,4538.5,5.48999338]
[1759682041852,0.7290204,4538.6,4538.5,2.28219338]
[1759682042046,0.7290204,4538.6,4538.0,3.3382]
[1759682042047,0.4279,4538.3,4538.2,0.3298]
[1759682042253,0.7262,4537.5,4536.9,3.2078]
[1759682042552,0.7262,4537.4,4537.3,1.39369338]
[1759682043252,0.7262,4537.4,4537.3,1.94729338]
[1759682043445,0.7262,4537.4,4537.3,1.72349338]
[1759682045452,0.7262,4537.4,4537.3,1.94729338]
[1759682046047,0.4279,4537.4,4537.3,2.15179338]
[1759682050056,0.7262,4536.6,4536.4,3.2078]
[1759682050351,0.4279,4536.6,4536.5,0.5587]
[1759682050553,0.82455,4536.6,4536.5,2.28219338]
[1759682052053,1.12285,4536.6,4536.5,2.28219338]
[1759682053758,0.82455,4536.6,4536.5,2.28219338]
[1759682054747,1.12285,4536.6,4536.5,2.28219338]
[1759682057255,4.18958169,4536.6,4536.5,0.3298]
[1759682057554,0.82899,4536.1,4536.0,0.5753]
[1759682057751,0.82899,4536.1,4536.0,1.96899338]
[1759682057952,0.82899,4536.1,4536.0,2.29839338]
[1759682059548,0.61019,4536.1,4536.0,2.29839338]
[1759682060456,1.12739,4536.1,4536.0,0.4598]
[1759682060659,0.82899,4536.1,4536.0,0.9047]
[1759682061461,1.12739,4536.1,4536.0,0.9047]
[1759682063162,0.82899,4536.1,4536.0,0.9047]
[1759682070165,0.39669,4536.1,4536.0,2.29839338]
[1759682070359,4.33511,4537.1,4537.0,0.6827]
[1759682070557,4.55611,4537.1,4537.0,0.6827]
[1759682070762,7.43156394,4537.1,4537.0,0.5503]
[1759682070963,7.43156394,4537.1,4537.0,0.3294]
[1759682071365,7.43156394,4537.1,4537.0,0.5503]
[1759682071870,7.43156394,4537.1,4537.0,0.3294]
[1759682073068,4.22376394,4537.1,4537.0,0.3294]
[1759682073270,7.43156394,4537.1,4537.0,0.5503]
[1759682073667,7.21056394,4537.1,4537.0,0.5503]
[1759682073869,7.43156394,4537.1,4537.0,0.5503]
[1759682074767,7.13316394,4537.1,4537.0,0.8977]
[1759682074971,6.91216394,4537.1,4537.0,2.29139338]
[1759682075172,7.13316394,4537.1,4537.0,2.29139338]
[1759682075969,6.91436394,4537.1,4537.0,2.29139338]
[1759682076771,6.70086394,4537.1,4537.0,2.29139338]
[1759682077370,6.91466394,4537.1,4537.0,2.29139338]
[1759682077574,7.13766394,4537.1,4537.0,2.29139338]
[1759682077776,7.43606394,4537.1,4537.0,2.29139338]
[1759682078471,7.13766394,4537.1,4537.0,2.29139338]
[1759682078666,6.51805394,4537.1,4537.0,2.29139338]
[1759682078872,6.30425394,4537.1,4537.0,2.29139338]
[1759682079474,3.2078,4537.1,4537.0,2.29139338]
[1759682081377,0.221,4537.3,4537.2,0.4361]
[1759682081579,0.221,4537.3,4537.2,0.7519]
[1759682082378,0.6578,4537.3,4537.2,0.7519]
[1759682082578,0.9562,4537.3,4537.2,0.7519]
[1759682083582,2.53604349,4537.3,4537.2,0.7519]
[1759682084281,0.9562,4537.3,4537.2,0.7519]
[1759682084480,0.9562,4537.3,4537.2,0.5308]
[1759682084481,2.53604349,4537.3,4537.2,0.5308]
[1759682084679,2.53604349,4537.3,4537.2,0.3158]
[1759682085181,2.53604349,4537.3,4537.2,0.5308]
[1759682087283,0.9562,4537.3,4537.2,0.5308]
[1759682087983,0.9562,4537.3,4537.2,0.7519]
[1759682088178,0.9562,4537.3,4537.0,0.1263]
[1759682088179,0.1346,4537.0,4535.7,0.00269074]
[1759682088487,0.542,4534.7,4534.6,0.2055]
[1759682088674,0.542,4534.7,4534.5,3.2078]
[1759682088675,1.16292,4534.6,4534.5,3.2078]
[1759682088989,1.16292,4534.6,4533.5,0.2514]
[1759682088990,0.7661,4534.1,4534.0,3.4133]
[1759682089279,1.24571661,4534.1,4534.0,3.61965099]
[1759682089483,1.24571661,4534.1,4534.0,0.41185099]
[1759682090379,1.24571661,4534.1,4534.0,0.73555099]
[1759682092690,1.03981661,4534.1,4534.0,0.73555099]
[1759682093386,0.5624803,4534.1,4534.0,0.73555099]
[1759682095593,0.7683803,4534.1,4534.0,0.73555099]
[1759682101907,0.7683803,4534.1,4534.0,1.13243099]
[1759682102199,0.0022803,4534.1,4534.0,10.81272437]
[1759682102703,0.43,4535.1,4535.0,0.8677]
[1759682102908,0.9155123,4535.1,4535.0,0.8677]
[1759682103602,0.91711339,4535.1,4535.0,0.8677]
[1759682104711,1.25321339,4535.1,4535.0,0.8677]
[1759682105509,0.91711339,4535.1,4535.0,2.07120308]
[1759682105702,0.91711339,4535.1,4535.0,1.67441308]
[1759682105903,1.25321339,4535.1,4535.0,1.67441308]
[1759682109411,1.25321339,4535.1,4535.0,2.07120308]
[1759682114710,1.25321339,4535.1,4535.0,1.67441308]
[1759682116417,1.25321339,4535.1,4535.0,2.07120308]
[1759682119319,0.91711339,4535.1,4535.0,2.07120308]
[1759682120915,4.48041859,4535.1,4535.0,0.80671308]
[1759682121115,7.68821859,4535.1,4535.0,0.80671308]
[1759682121311,0.4274,4534.8,4534.7,0.5365]
[1759682121515,1.3097223,4534.8,4534.7,1.34321308]
[1759682121715,1.6215223,4534.8,4534.7,1.34321308]
[1759682123117,1.2247123,4534.8,4534.7,1.34321308]
[1759682123923,1.2247123,4534.8,4534.7,1.74003308]
[1759682124222,1.2247123,4534.8,4534.7,1.94703308]
[1759682125823,1.2347123,4534.8,4534.7,1.94703308]
[1759682126320,2.81950084,4534.8,4534.7,1.94703308]
[1759682129731,2.81950084,4534.8,4534.7,1.55021308]
[1759682130331,2.81950084,4534.8,4534.7,1.94703308]
[1759682131826,2.50770084,4534.8,4534.7,1.94703308]
[1759682132026,2.08030084,4534.8,4534.7,1.94703308]
[1759682133528,0.4955123,4534.8,4534.7,1.94703308]
[1759682134433,0.49895167,4534.8,4534.7,1.94703308]
[1759682138936,0.49895167,4534.8,4534.7,2.16803308]
[1759682142337,0.49895167,4534.8,4534.7,1.36132]
[1759682143740,0.49895167,4534.8,4534.7,2.16803308]
[1759682144336,0.4391,4535.7,4535.6,1.14814]
[1759682144832,0.2181,4535.7,4535.6,1.14814]
[1759682145436,0.22019631,4535.7,4535.6,1.14814]
[1759682148038,0.22599631,4535.7,4535.6,1.14814]
[1759682150643,0.56139631,4535.7,4535.6,1.14814]
[1759682150834,0.22599631,4535.7,4535.6,1.14814]
[1759682151841,0.77799631,4535.7,4535.6,1.14814]
[1759682153143,0.44259631,4535.7,4535.6,1.14814]
[1759682156244,0.92654216,4535.7,4535.6,1.14814]
[1759682156643,1.26194216,4535.7,4535.6,1.14814]
[1759682160249,0.92654216,4535.7,4535.6,1.14814]
[1759682160449,0.70994216,4535.7,4535.6,1.14814]
[1759682161147,0.48604216,4535.7,4535.6,1.14814]
[1759682161353,0.30898277,4535.7,4535.6,6.36914]
[1759682161554,2.77e-06,4535.7,4535.6,6.36914]
[1759682161847,3.4317,4537.1,4537.0,0.52141]
[1759682162051,3.4317,4537.1,4537.0,1.26851]
[1759682162248,3.43331319,4537.1,4537.0,1.26851]
[1759682163248,0.22551319,4537.1,4537.0,1.26851]
[1759682167057,0.44211319,4537.1,4537.0,0.5227]
[1759682167263,0.77751319,4537.1,4537.0,0.7471]
[1759682168664,0.77751319,4537.1,4537.0,0.8719]
[1759682168858,0.77751319,4537.1,4537.0,1.26851]
[1759682171263,0.77751319,4537.1,4537.0,0.8719]
[1759682171564,0.77751319,4537.1,4537.0,1.26851]
[1759682172663,0.22551319,4537.1,4537.0,1.26851]
[1759682173560,0.70404149,4537.1,4537.0,1.26851]
[1759682173756,0.42952145,4537.1,4537.0,6.48951]
[1759682173960,1.58175736,4537.8,4537.7,1.14365]
[1759682174165,1.58175736,4537.9,4537.8,0.7471]
[1759682174668,1.58175736,4538.0,4537.9,0.82584]
[1759682174967,1.5839862,4538.0,4537.9,1.36720643]
[1759682176866,0.00222884,4538.0,4537.9,1.36720643]
[1759682178262,2.76472612,4539.3,4537.9,1.36720643]
[1759682178263,1.58175736,4538.7,4538.5,0.52408]
[1759682178460,1.58175736,4538.9,4538.7,0.82237]
[1759682178660,1.58175736,4538.9,4538.8,0.9686]
[1759682178861,2.34565736,4539.2,4539.1,0.7476]
[1759682179265,0.7639,4539.2,4539.1,0.7476]
[1759682179565,0.76594874,4539.2,4539.1,1.14403]
[1759682179872,0.22744874,4539.2,4539.1,1.14403]
[1759682181267,0.45284874,4539.2,4539.1,0.7476]
[1759682181478,0.22744874,4539.2,4539.1,0.7476]
[1759682181970,0.00204874,4539.2,4539.1,0.9686]
[1759682183968,0.00204874,4539.2,4539.1,5.9686]
[1759682189071,0.00204874,4539.2,4539.1,6.36503]
[1759682193079,0.21754874,4539.2,4539.1,1.14403]
[1759682193276,0.75114874,4539.2,4539.1,1.36503]
[1759682193671,0.75114874,4539.2,4539.1,0.9686]
[1759682193977,0.75114874,4539.2,4539.1,1.36503]
[1759682194471,0.43124874,4539.2,4539.1,1.36503]
[1759682196383,0.43124874,4539.2,4539.1,0.9686]
[1759682196581,0.75114874,4539.2,4539.1,0.7476]
[1759682196883,0.75114874,4539.2,4539.1,1.36503]
[1759682199380,1.22382138,4539.2,4539.1,1.36503]
[1759682199982,1.22382138,4539.2,4539.1,0.9686]
[1759682200184,1.62024138,4539.2,4539.1,0.9686]
[1759682201381,1.22382138,4539.2,4539.1,0.9686]
[1759682202679,1.22382138,4539.2,4539.1,1.36503]
[1759682204285,0.90392138,4539.2,4539.1,1.36503]
[1759682204486,0.69022138,4539.2,4539.1,1.36503]
[1759682204680,0.47472138,4539.2,4539.1,1.36503]
[1759682206880,0.47661876,4539.2,4539.1,1.36503]
[1759682207983,0.87303876,4539.2,4539.1,0.7476]
[1759682208182,0.87303876,4539.2,4539.1,0.9686]
[1759682208686,0.87303876,4539.2,4539.1,1.36503]
[1759682208986,0.47661876,4539.2,4539.1,1.36503]
[1759682209486,0.69211876,4539.2,4539.1,1.36503]
[1759682211582,1.08853876,4539.2,4539.1,0.9686]
[1759682211783,1.40363876,4539.2,4539.1,0.9686]
[1759682212489,1.62713876,4539.2,4539.1,0.9686]
[1759682212886,1.62713876,4539.2,4539.1,0.7476]
[1759682213081,0.7451,4538.7,4538.6,0.5366]
[1759682213287,1.61614002,4538.7,4538.6,0.7576]
[1759682213782,1.61614002,4538.7,4538.6,0.5476]
[1759682215590,1.61614002,4538.7,4538.6,0.3266]
[1759682215785,1.61614002,4538.7,4538.6,0.5476]
[1759682216189,0.2065,4538.1,4538.0,0.1276]
[1759682216491,0.68107002,4538.1,4538.0,1.17523]
[1759682216691,0.68107002,4538.1,4538.0,0.5577]
[1759682216996,0.68107002,4538.1,4538.0,1.1053]
[1759682218194,0.99617002,4538.1,4538.0,1.1053]
[1759682220189,1.39269002,4538.1,4538.0,0.8843]
[1759682220390,1.14163,4538.0,4537.9,3.21036643]
[1759682220695,1.61620002,4538.0,4537.9,3.43136643]
[1759682221294,1.21967002,4538.0,4537.9,4.18806643]
[1759682221888,0.47457002,4538.0,4537.9,4.58460643]
[1759682222093,0.60298,4538.6,4538.5,0.8824]
[1759682222395,1.61726847,4538.6,4538.5,0.8824]
[1759682222594,1.61726847,4538.6,4538.5,0.7567]
[1759682224196,1.61726847,4538.6,4538.5,0.5366]
[1759682226102,1.61698686,4538.6,4538.5,0.5366]
[1759682232099,4.82478686,4538.6,4538.5,0.5366]
[1759682232406,1.61698686,4538.6,4538.5,0.5366]
[1759682232697,4.82478686,4538.6,4538.5,0.5366]
[1759682234800,0.7451,4538.0,4537.9,0.21256643]
[1759682234987,1.61703686,4538.0,4537.9,0.21256643]
[1759682235493,1.61703686,4538.0,4537.9,0.53916643]
[1759682236690,1.61703686,4538.0,4537.9,0.75926643]
[1759682236889,0.47540686,4538.0,4537.9,0.75926643]
[1759682237096,0.47540686,4538.0,4537.9,1.15580643]
[1759682241102,0.47540686,4538.0,4537.9,0.75926643]
[1759682241495,0.47540686,4538.0,4537.9,1.15580643]
[1759682249500,1.61023686,4538.0,4537.9,0.75926643]
[1759682249701,1.61023686,4538.0,4537.9,1.15580643]
[1759682249901,1.61023686,4538.0,4537.9,0.75926643]
[1759682251209,1.61023686,4538.0,4537.9,1.15580643]
[1759682254720,1.61023686,4538.0,4537.9,0.75926643]
[1759682254910,1.61023686,4538.0,4537.9,0.32916643]
[1759682255218,1.61023686,4538.0,4537.9,0.54366643]
[1759682257817,1.73383686,4538.0,4537.9,0.00256643]
[1759682266635,1.21370686,4538.0,4537.9,0.76036643]
[1759682266928,0.47540686,4538.0,4537.9,1.15690643]
[1759682268331,0.47540686,4538.0,4537.9,6.15690643]
[1759682270227,0.47540686,4538.0,4537.9,6.37790643]
[1759682275831,0.5341,4538.7,4538.6,1.15217]
[1759682276032,1.01089914,4538.7,4538.6,1.37317]
[1759682276227,1.23679914,4538.7,4538.6,1.37317]
[1759682277739,1.23679914,4538.7,4538.6,1.16097]
[1759682278239,1.23679914,4538.7,4538.6,0.221]
[1759682278641,0.883,4538.5,4538.4,0.72799]
[1759682278832,1.35979914,4538.5,4538.4,0.94899]
[1759682279738,1.04669914,4538.5,4538.0,3.5393]
[1759682279942,0.76,4538.1,4538.0,3.93583]
[1759682280240,1.23679914,4538.1,4538.0,4.15683]
[1759682280440,1.23679914,4538.1,4538.0,4.36883]
[1759682281243,1.23679914,4538.1,4538.0,4.70473]
[1759682281444,0.92369914,4538.1,4538.0,4.70473]
[1759682281941,1.23679914,4538.1,4538.0,4.70473]
[1759682282339,1.23679914,4538.1,4538.0,3.7513]
[1759682282544,0.123,4538.0,4537.9,0.00256643]
[1759682282745,1.35979914,4538.0,4537.9,0.00256643]
[1759682283243,4.19482676,4538.0,4537.9,0.00256643]
[1759682286044,4.59135676,4538.0,4537.9,0.00256643]
[1759682288449,4.81235676,4538.0,4537.9,0.00256643]
[1759682291251,4.33555762,4538.0,4537.9,0.00256643]
[1759682291452,4.80858152,4538.0,4537.9,0.00256643]
[1759682303063,4.68558152,4538.0,4537.9,0.53516643]
[1759682303258,4.68558152,4538.0,4537.9,0.75966643]
[1759682304857,0.9199239,4538.0,4537.9,1.15620643]
[1759682305059,0.6940239,4538.0,4537.9,1.15620643]
[1759682305361,0.6940239,4538.0,4537.9,4.36400643]
[1759682306964,0.6940239,4538.0,4537.9,3.96746643]
[1759682310465,0.6940239,4538.0,4537.9,4.36400643]
[1759682310667,0.4730239,4538.0,4537.9,4.36400643]
[1759682316870,0.8695539,4538.0,4537.9,3.96746643]
[1759682317069,1.0734539,4538.0,4537.9,0.75966643]
[1759682317578,1.6069539,4538.0,4537.9,0.75966643]
[1759682318271,1.2879539,4538.0,4537.9,0.75966643]
[1759682320176,0.8914239,4538.0,4537.9,0.75966643]
[1759682321574,1.2104239,4538.0,4537.9,0.75966643]
[1759682322775,0.8914239,4538.0,4537.9,0.75966643]
[1759682323682,0.6769239,4538.0,4537.9,1.15620643]
[1759682324481,0.4730239,4538.0,4537.9,1.15620643]
[1759682324685,0.4730239,4538.0,4537.9,6.15620643]
[1759682324983,0.71543,4539.1,4539.0,0.4202]
[1759682325183,0.5229,4539.1,4539.0,0.742]
[1759682326278,0.7374,4539.1,4539.0,0.742]
[1759682326883,0.7374,4539.1,4539.0,0.4202]
[1759682328385,0.7461,4538.9,4538.8,3.4198]
[1759682328685,0.7461,4538.9,4538.8,3.9583]
[1759682329986,0.7461,4538.9,4538.8,4.35476]
[1759682331182,0.5313,4538.9,4538.8,4.35476]
[1759682332989,0.5313,4538.9,4538.8,3.9583]
[1759682333287,0.7461,4538.9,4538.8,3.9583]
[1759682333680,0.7461,4538.9,4538.8,4.35476]
[1759682333681,0.5313,4538.9,4538.8,4.35476]
[1759682336894,1.00114724,4538.9,4538.8,4.35476]
[1759682339793,1.21594724,4538.9,4538.8,4.35476]
[1759682339996,1.21594724,4538.9,4538.8,4.03916]
[1759682340502,1.21594724,4538.9,4538.8,4.35476]
[1759682343894,1.00114724,4538.9,4538.8,4.35476]
[1759682344101,0.78984724,4538.9,4538.8,4.35476]
[1759682344298,0.46984724,4538.9,4538.8,4.35476]
[1759682344603,0.78984724,4538.9,4538.8,4.35476]
[1759682346000,1.00114724,4538.9,4538.8,4.35476]
[1759682346502,1.21594724,4538.9,4538.8,4.35476]
[1759682346704,1.21594724,4538.9,4538.8,1.14696]
[1759682350003,1.21594724,4538.9,4538.8,0.4349]
[1759682350307,1.26898,4538.5,4538.4,3.2078]
[1759682350507,1.34234724,4538.5,4538.4,3.2078]
[1759682350908,1.73882724,4538.5,4538.4,3.2078]
[1759682351504,1.73882724,4538.5,4538.1,0.39652]
[1759682351804,0.7461,4538.2,4538.1,0.60852]
[1759682352106,1.21594724,4538.2,4538.1,0.433]
[1759682352306,1.61245724,4538.2,4538.1,0.433]
[1759682352502,1.21594724,4538.2,4538.1,0.433]
[1759682352898,1.21594724,4538.2,4538.1,0.221]
[1759682353404,0.7461,4538.1,4538.0,0.212]
[1759682353597,1.21594724,4538.1,4538.0,1.36803]
[1759682353800,0.46984724,4538.1,4538.0,1.41253]
[1759682354000,0.32,4538.9,4538.8,0.39645]
[1759682354208,0.5313,4538.9,4538.8,1.14695]
[1759682354507,0.47146559,4538.9,4538.8,1.36795]
[1759682356211,0.79146559,4538.9,4538.8,1.36795]
[1759682363215,0.99566559,4538.9,4538.8,1.36795]
[1759682364412,1.21066559,4538.9,4538.8,1.36795]
[1759682365616,0.99566559,4538.9,4538.8,1.36795]
[1759682366118,0.47146559,4538.9,4538.8,1.36795]
[1759682367019,0.78106559,4538.9,4538.8,1.36795]
[1759682367616,0.98526559,4538.9,4538.8,1.36795]
[1759682371117,1.20026559,4538.9,4538.8,0.7505]
[1759682371318,0.1253,4538.5,4538.4,3.60429]
[1759682371523,1.32556559,4538.5,4538.4,4.55399]
[1759682372927,1.32556559,4538.5,4538.4,1.34619]
[1759682374316,1.32556559,4538.5,4538.4,4.55399]
[1759682376630,1.20026559,4538.5,4538.4,4.55399]
[1759682380030,0.47146559,4538.5,4538.4,4.55399]
[1759682383539,0.3313,4538.7,4538.6,0.84087]
[1759682383729,0.80477316,4538.7,4538.6,1.39937]
[1759682384829,0.80477316,4538.7,4538.6,4.60717]
[1759682388738,1.02707316,4538.7,4538.6,4.60717]
[1759682389436,1.64654316,4538.7,4538.6,3.4288]
[1759682389740,1.64654316,4538.7,4538.6,3.82527]
[1759682390033,6.64654316,4538.7,4538.6,3.4288]
[1759682390935,6.25007316,4538.7,4538.6,3.4288]
[1759682391135,6.25007316,4538.7,4538.6,3.82527]
[1759682391339,0.4283,4538.2,4538.1,3.4163]
[1759682391639,1.22797316,4538.2,4538.1,3.6373]
[1759682392334,1.22797316,4538.2,4538.1,4.03382]
[1759682392835,1.22797316,4538.2,4538.1,3.6373]
[1759682393742,1.22797316,4538.2,4538.1,4.03382]
[1759682394042,1.22797316,4538.2,4538.1,3.81282]
[1759682394244,1.22797316,4538.2,4538.1,4.03382]
[1759682395843,1.22797316,4538.2,4538.1,3.4163]
[1759682396036,1.22797316,4538.2,4538.1,4.03382]
[1759682396236,1.22797316,4538.2,4538.1,4.57042]
[1759682399240,0.47347316,4538.2,4538.1,4.57042]
[1759682399445,0.73064,4539.0,4538.9,0.4345]
[1759682399639,1.53005305,4539.0,4538.9,0.7451]
[1759682399848,1.75305305,4539.0,4538.9,0.7451]
[1759682400343,1.75305305,4539.0,4538.9,0.4345]
[1759682402847,1.75305305,4539.0,4538.9,0.2085]
[1759682404548,1.35661305,4539.0,4538.9,0.2085]
[1759682405246,1.35661305,4539.0,4538.9,0.60495]
[1759682408056,1.35661305,4539.0,4538.9,0.2085]
[1759682408760,1.75305305,4539.0,4538.9,0.2085]
[1759682410654,0.3262,4538.9,4538.8,0.61745]
[1759682410860,1.22771305,4538.9,4538.8,0.82595]
[1759682411255,1.22771305,4538.9,4538.8,1.36255]
[1759682414963,1.62416305,4538.9,4538.8,0.9661]
[1759682415550,1.62416305,4538.9,4538.8,0.6555]
[1759682415756,1.62416305,4538.9,4538.8,0.4295]
[1759682416067,1.62416305,4538.9,4538.8,0.221]
[1759682422964,1.1555,4538.3,4538.2,3.2078]
[1759682423264,1.62871305,4538.3,4538.2,3.4288]
[1759682424367,1.62871305,4538.3,4538.2,3.6401]
[1759682424871,1.23221305,4538.3,4538.2,4.03661]
[1759682425257,1.23221305,4538.3,4538.2,4.55801]
[1759682428165,0.47321305,4538.3,4538.2,4.55801]
[1759682428464,0.207,4538.7,4538.6,0.82207]
[1759682428670,1.01193383,4538.7,4538.6,1.12917]
[1759682429470,1.23663383,4538.7,4538.6,1.12917]
[1759682429670,1.63310383,4538.7,4538.6,0.7327]
[1759682430169,1.23663383,4538.7,4538.6,1.12917]
[1759682432065,1.01193383,4538.7,4538.6,1.35017]
[1759682432271,0.47763383,4538.7,4538.6,1.35017]
[1759682433370,0.81233383,4538.7,4538.6,1.35017]
[1759682434573,0.47763383,4538.7,4538.6,1.35017]
[1759682435074,0.81233383,4538.7,4538.6,1.35017]
[1759682439179,1.02833383,4538.7,4538.6,1.35017]
[1759682441181,1.02833383,4538.7,4538.6,4.55797]
[1759682444181,0.47763383,4538.7,4538.6,4.55797]
[1759682445182,0.81233383,4538.7,4538.6,4.55797]
[1759682445379,1.02833383,4538.7,4538.6,4.55797]
[1759682447478,0.81233383,4538.7,4538.6,4.55797]
[1759682447680,0.47763383,4538.7,4538.6,4.55797]
[1759682450386,0.87410383,4538.7,4538.6,4.55797]
[1759682450587,0.87410383,4538.7,4538.6,4.1615]
[1759682450789,0.87410383,4538.7,4538.6,4.55797]
[1759682451689,1.19480383,4538.7,4538.6,4.55797]
[1759682452491,0.79833383,4538.7,4538.6,4.55797]
[1759682452685,0.47763383,4538.7,4538.6,4.55797]
[1759682455782,0.79833383,4538.7,4538.6,4.55797]
[1759682456786,1.62790383,4538.7,4538.6,3.6334]
[1759682456989,1.62790383,4538.7,4538.6,3.6401]
[1759682457190,1.15029,4538.4,4538.3,0.2216]
[1759682457390,1.62792383,4538.4,4538.3,0.8391]
[1759682457992,1.62792383,4538.4,4538.3,1.178]
[1759682458187,1.23143383,4538.4,4538.3,1.3835]
[1759682458589,1.62792383,4538.4,4538.3,1.3835]
[1759682459189,0.39639,4539.6,4539.2,0.39642]
[1759682459387,0.39639,4539.6,4538.3,5.6481]
[1759682459388,0.82943,4540.2,4540.1,0.5605]
[1759682460193,0.8315163,4540.2,4540.1,0.5605]
[1759682460694,0.8315163,4540.2,4540.1,0.766]
[1759682460695,0.4351863,4540.2,4540.1,0.766]
[1759682461288,0.7558863,4540.2,4540.1,0.766]
[1759682466397,0.7558863,4540.2,4540.1,0.5605]
[1759682467097,0.7558863,4540.2,4540.1,0.766]
[1759682467997,1.1522163,4540.2,4540.1,0.766]
[1759682468995,0.7558863,4540.2,4540.1,0.766]
[1759682469602,1.1522163,4540.2,4540.1,0.766]
[1759682469797,0.7558863,4540.2,4540.1,1.16234]
[1759682470298,0.7558863,4540.2,4540.1,0.766]
[1759682470499,0.7558863,4540.2,4540.1,1.16234]
[1759682471192,1.22554783,4540.2,4540.1,1.16234]
[1759682475600,0.47174783,4540.2,4540.1,1.16234]
[1759682476295,0.47174783,4540.2,4540.1,4.37014]
[1759682478302,3.5456,4541.5,4541.3,1.15774]
[1759682478507,0.5589,4541.6,4541.5,1.28952]
[1759682478707,1.02829367,4541.6,4541.5,1.28952]
[1759682479202,0.69049367,4541.6,4541.5,1.28952]
[1759682479411,0.69248412,4541.6,4541.5,1.2921562]
[1759682479609,1.24478412,4541.6,4541.5,0.8959362]
[1759682485118,1.24478412,4541.6,4541.5,4.4999562]
[1759682485711,1.64099412,4541.6,4541.5,3.7578362]
[1759682486108,1.64099412,4541.6,4541.5,3.9778362]
[1759682486311,1.64099412,4541.6,4541.5,3.7578362]
[1759682486714,1.64099412,4541.6,4541.5,3.9778362]
[1759682489013,1.64099412,4541.6,4541.5,0.0026362]
[1759682489311,1.64099412,4541.6,4541.5,0.2226362]
[1759682489509,1.64099412,4541.6,4541.5,0.0026362]
[1759682491216,1.24478412,4541.6,4541.5,0.3988562]
[1759682491417,1.24478412,4541.6,4541.5,0.9462562]
[1759682492317,1.64099412,4541.6,4541.5,0.5500362]
[1759682492817,1.64099412,4541.6,4541.5,0.0026362]
[1759682493020,9.84879412,4541.6,4541.5,0.0026362]
[1759682494815,4.84879412,4541.6,4541.5,0.0026362]
[1759682495020,4.84879412,4541.6,4541.5,0.3336362]
[1759682495520,4.84879412,4541.6,4541.5,0.0026362]
[1759682498123,1.64099412,4541.6,4541.5,0.0026362]
[1759682501431,1.64099412,4541.6,4541.5,0.5554362]
[1759682506130,1.64099412,4541.6,4541.5,0.7600362]
[1759682506934,1.08869412,4541.6,4541.5,0.8935362]
[1759682507128,1.39799412,4541.6,4541.5,0.8935362]
[1759682507825,1.00178412,4541.6,4541.5,1.2897562]
[1759682508438,1.39799412,4541.6,4541.5,0.8935362]
[1759682511236,1.60489412,4541.6,4541.5,0.8935362]
[1759682511429,1.08869412,4541.6,4541.5,0.8935362]
[1759682511631,1.62999412,4541.6,4541.5,0.7600362]
[1759682515133,1.62999412,4541.6,4541.5,0.0026362]
[1759682518032,1.62999412,4541.6,4541.5,0.3191362]
[1759682519140,1.62999412,4541.6,4541.5,0.5408362]
[1759682519733,1.62999412,4541.6,4541.5,0.0026362]
[1759682519936,1.62999412,4541.6,4541.5,0.7470362]
[1759682521940,1.62999412,4541.6,4541.5,0.0026362]
[1759682524341,1.62999412,4541.6,4541.5,0.3191362]
[1759682524743,1.62999412,4541.6,4541.5,0.5408362]
[1759682524943,1.62999412,4541.6,4541.5,0.0026362]
[1759682529943,1.62999412,4541.6,4541.5,0.5408362]
[1759682530849,1.62999412,4541.6,4541.5,0.8808362]
[1759682531451,1.62999412,4541.6,4541.5,0.7470362]
[1759682537444,1.23378412,4541.6,4541.5,1.1432562]